fUST/lending_fUST_20250407
["ID","MTS","AMOUNT","RATE_DAILY","PERIOD"]
[357332294,1744007490400,-1044.92,0.00041369,7]
[357332295,1744007490410,-752.29,0.00041369,7]
[357332296,1744007490421,-556.96,0.00041369,7]
[357332297,1744007490431,-16324.2,0.00041369,7]
[357332298,1744007490441,-9467.87,0.00041369,7]
[357332299,1744007490451,-500.0,0.00041369,7]
[357332300,1744007490460,-704.24,0.00041369,7]
[357332301,1744007490470,-5668.81,0.00041369,7]
[357332302,1744007490480,-2032.66,0.00041369,7]
[357332303,1744007490490,-7826.43,0.00041369,7]
[357332304,1744007490500,-627.1,0.00041369,7]
[357332305,1744007490510,-1951.0,0.00041369,7]
[357332306,1744007490520,-1564.82,0.00041369,7]
[357332307,1744007490530,-720.69,0.00041369,7]
[357332308,1744007490543,-603.99,0.00041369,7]
[357332309,1744007490553,-500.0,0.00041369,7]
[357332310,1744007490562,-1960.56,0.00041369,7]
[357332311,1744007490572,-1748.88,0.00041369,7]
[357332312,1744007490581,-500.0,0.00041369,7]
[357332313,1744007490591,-2029.77,0.00041369,7]
[357332314,1744007490601,-500.0,0.00041369,7]
[357332315,1744007490611,-1368.39,0.00041369,2]
[357332316,1744007490620,-588.58,0.00041369,7]
[357332317,1744007490630,-601.11,0.00041369,7]
[357332318,1744007490640,-500.0,0.00041369,7]
[357332319,1744007490649,-1802.77,0.00041369,7]
[357332320,1744007490660,-638.37,0.00041369,7]
[357332321,1744007490672,-3642.09,0.00041369,7]
[357332322,1744007490682,-1347.37,0.00041369,7]
[357332323,1744007490692,-1391.95,0.00041369,7]
[357332324,1744007490702,-500.0,0.00041369,7]
[357332325,1744007490714,-2126.62,0.00041369,7]
[357332326,1744007490724,-796.84,0.00041369,7]
[357332327,1744007490733,-617.31,0.00041369,7]
[357332328,1744007490743,-5186.58,0.00041369,7]
[357332329,1744007490753,-1111.1,0.00041369,7]
[357332330,1744007490763,-1058.19,0.00041369,7]
[357332331,1744007490772,-7684.6,0.00041369,7]
[357332332,1744007490782,-781.69,0.00041369,7]
[357332333,1744007490796,-503.58,0.00041369,7]
[357332334,1744007490806,-500.0,0.00041369,7]
[357332335,1744007490815,-526.85,0.00041369,7]
[357332336,1744007490825,-500.0,0.00041369,7]
[357332337,1744007490835,-6861.13,0.00041369,7]
[357332338,1744007490845,-500.0,0.00041369,7]
[357332339,1744007490854,-500.0,0.00041369,7]
[357332340,1744007490864,-500.0,0.00041369,7]
[357332341,1744007490874,-7716.74,0.00041369,7]
[357332342,1744007490883,-2269.56,0.00041369,7]
[357332343,1744007490892,-4907.12,0.00041369,7]
[357332344,1744007490902,-504.85,0.00041369,7]
[357332345,1744007490911,-542.23,0.00041369,7]
[357332346,1744007490920,-2640.34,0.00041369,7]
[357332347,1744007490930,-2111.69,0.00041369,7]
[357332348,1744007490940,-500.0,0.00041369,7]
[357332349,1744007490949,-938.16008227,0.00041369,3]
[357332350,1744007490959,-2900.21,0.00041369,7]
[357332351,1744007490968,-754.1,0.00041369,7]
[357332352,1744007490978,-582.6,0.00041369,7]
[357332353,1744007490988,-726.72,0.00041369,7]
[357332354,1744007490998,-904.26,0.00041369,7]
[357332355,1744007491008,-500.0,0.00041369,7]
[357332356,1744007491018,-564.13,0.00041369,7]
[357332357,1744007491028,-853.72,0.00041369,7]
[357332358,1744007491043,-17236.37,0.00041369,7]
[357332359,1744007491055,-1442.71,0.00041369,7]
[357332360,1744007491065,-520.98,0.00041369,7]
[357332361,1744007491075,-3459.37,0.00041369,7]
[357332362,1744007491085,-500.0,0.00041369,7]
[357332363,1744007491094,-1195.35,0.00041369,7]
[357332364,1744007491103,-500.0,0.00041369,7]
[357332365,1744007491114,-739.23,0.00041369,7]
[357332366,1744007491124,-500.0,0.00041369,7]
[357332367,1744007491133,-931.74,0.00041369,7]
[357332368,1744007491143,-1037.89,0.00041369,7]
[357332369,1744007491153,-500.0,0.00041369,7]
[357332370,1744007491162,-500.0,0.00041369,7]
[357332371,1744007491172,-800.0,0.00041421,14]
[357332372,1744007491181,-211.49636895,0.00041425,120]
[357332373,1744007491191,-800.0,0.00041452,14]
[357332374,1744007491201,-1020.030197,0.0004148,15]
[357332375,1744007491210,-800.0,0.00041487,14]
[357332376,1744007491221,-1000.0,0.000415,15]
[357332377,1744007491231,-1000.0,0.0004152,15]
[357332378,1744007491241,-1000.0,0.0004154,15]
[357332379,1744007491251,-1000.0,0.0004156,15]
[357332380,1744007491260,-1000.0,0.0004158,15]
[357332381,1744007491269,-1088.164884,0.0004158,15]
[357332382,1744007491279,-1000.0,0.000416,15]
[357332383,1744007491293,-1000.0,0.000416,15]
[357332384,1744007491303,-1500.0,0.000416,36]
[357332385,1744007491312,-211.49636895,0.00041616,120]
[357332386,1744007491322,-812.34,0.00041643,7]
[357332387,1744007491332,-500.0,0.00041643,7]
[357332388,1744007491342,-729.06,0.00041643,7]
[357332389,1744007491352,-500.0,0.00041643,7]
[357332390,1744007491362,-500.0,0.00041643,7]
[357332391,1744007491373,-500.0,0.00041643,7]
[357332392,1744007491383,-736.69,0.00041643,7]
[357332393,1744007491392,-500.0,0.00041643,7]
[357332394,1744007491402,-500.0,0.00041643,7]
[357332395,1744007491411,-500.0,0.00041643,7]
[357332396,1744007491421,-500.0,0.00041643,7]
[357332397,1744007491432,-500.0,0.00041643,7]
[357332398,1744007491441,-500.0,0.00041643,7]
[357332399,1744007491451,-867.45,0.00041643,7]
[357332400,1744007491461,-500.0,0.00041643,7]
[357332401,1744007491471,-500.0,0.00041643,7]
[357332402,1744007491481,-500.0,0.00041643,7]
[357332403,1744007491491,-500.0,0.00041643,7]
[357332404,1744007491500,-500.0,0.00041643,7]
[357332405,1744007491510,-533.35,0.00041643,7]
[357332406,1744007491519,-906.27,0.00041643,7]
[357332407,1744007491529,-670.8,0.00041643,7]
[357332408,1744007491543,-517.39,0.00041643,7]
[357332409,1744007491553,-500.0,0.00041643,7]
[357332410,1744007491563,-365.38344672,0.00041643,7]
[357332411,1744007491572,-534.6,0.00041643,7]
[357332412,1744007491582,-500.0,0.00041643,7]
[357332413,1744007491591,-1086.53,0.00041643,7]
[357332414,1744007491601,-576.65,0.00041643,7]
[357332415,1744007491611,-270.59608861,0.00041643,7]
[357332416,1744007491621,-500.0,0.00041643,7]
[357332417,1744007491630,-500.0,0.00041643,7]
[357332418,1744007491640,-500.0,0.00041643,7]
[357332419,1744007491650,-500.0,0.00041643,7]
[357332420,1744007491661,-500.0,0.00041643,7]
[357332421,1744007491672,-1107.37,0.00041643,7]
[357332422,1744007491681,-1447.2,0.00041643,7]
[357332423,1744007491691,-513.43,0.00041643,7]
[357332424,1744007491701,-500.0,0.00041643,7]
[357332425,1744007491712,-566.61,0.00041643,7]
[357332426,1744007491721,-939.19,0.00041643,7]
[357332427,1744007491731,-1423.54,0.00041643,7]
[357332428,1744007491741,-2008.01,0.00041643,7]
[357332429,1744007491752,-1800.94,0.00041643,7]
[357332430,1744007491868,-901.74,0.00041643,7]
[357332431,1744007491879,-500.0,0.00041643,7]
[357332432,1744007491889,-749.66,0.00041643,7]
[357332433,1744007491899,-529.49383835,0.00041643,7]
[357332434,1744007491909,-500.0,0.00041643,7]
[357332435,1744007491918,-500.0,0.00041643,7]
[357332436,1744007491928,-697.53,0.00041643,7]
[357332437,1744007491938,-500.0,0.00041643,7]
[357332438,1744007491947,-934.77,0.00041643,7]
[357332439,1744007491957,-500.0,0.00041643,7]
[357332440,1744007491967,-1984.09,0.00041643,7]
[357332441,1744007491976,-935.62,0.00041643,7]
[357332442,1744007491986,-946.46,0.00041643,7]
[357332443,1744007491996,-500.0,0.00041643,7]
[357332444,1744007492005,-500.0,0.00041643,7]
[357332445,1744007492015,-515.1,0.00041643,7]
[357332446,1744007492024,-512.76,0.00041643,7]
[357332447,1744007492033,-690.44,0.00041643,7]
[357332448,1744007492046,-838.21,0.00041643,7]
[357332449,1744007492056,-847.87,0.00041643,7]
[357332450,1744007492065,-1589.02,0.00041643,7]
[357332451,1744007492074,-500.0,0.00041643,7]
[357332452,1744007492084,-500.0,0.00041643,7]
[357332453,1744007492093,-500.0,0.00041643,7]
[357332454,1744007492105,-500.0,0.00041643,7]
[357332455,1744007492114,-1158.58,0.00041643,7]
[357332456,1744007492124,-952.13,0.00041643,7]
[357332457,1744007492133,-573.45,0.00041643,7]
[357332458,1744007492141,-500.0,0.00041643,7]
[357332459,1744007492151,-1057.47,0.00041643,7]
[357332460,1744007492160,-500.0,0.00041643,7]
[357332461,1744007492169,-591.36,0.00041643,7]
[357332462,1744007492179,-694.43,0.00041643,7]
[357332463,1744007492188,-500.0,0.00041643,7]
[357332464,1744007492197,-571.11,0.00041643,7]
[357332465,1744007492205,-500.0,0.00041643,7]
[357332466,1744007492215,-528.03,0.00041643,7]
[357332467,1744007492224,-500.0,0.00041643,7]
[357332468,1744007492233,-613.99,0.00041643,7]
[357332469,1744007492242,-1665.49,0.00041643,7]
[357332470,1744007492251,-928.88,0.00041643,7]
[357332471,1744007492260,-772.18,0.00041643,7]
[357332472,1744007492270,-500.0,0.00041643,7]
[357332473,1744007492280,-500.0,0.00041643,7]
[357332474,1744007492293,-500.0,0.00041643,7]
[357332475,1744007492303,-500.0,0.00041643,7]
[357332476,1744007492312,-1501.09,0.00041643,2]
[357332477,1744007492322,-586.05,0.00041643,7]
[357332478,1744007492332,-722.91,0.00041643,7]
[357332479,1744007492341,-1033.34,0.00041643,7]
[357332480,1744007492351,-522.77,0.00041643,7]
[357332481,1744007492360,-500.0,0.00041643,7]
[357332482,1744007492370,-571.83,0.00041643,7]
[357332483,1744007492379,-523.84,0.00041643,7]
[357332484,1744007492389,-500.0,0.00041643,7]
[357332485,1744007492398,-500.0,0.00041643,7]
[357332486,1744007492408,-500.0,0.00041643,7]
[357332487,1744007492418,-251.57735708,0.00041643,7]
[357332488,1744007492428,-833.69,0.00041643,7]
[357332489,1744007492437,-530.91617095,0.00041643,7]
[357332490,1744007492446,-2025.36,0.00041643,7]
[357332491,1744007492455,-500.0,0.00041643,7]
[357332492,1744007492464,-1592.74,0.00041643,7]
[357332493,1744007492473,-603.67,0.00041643,7]
[357332494,1744007492482,-500.0,0.00041643,7]
[357332495,1744007492491,-2054.09,0.00041643,7]
[357332496,1744007492501,-4027.87,0.00041643,7]
[357332497,1744007492510,-1703.64,0.00041643,7]
[357332498,1744007492519,-1206.14,0.00041643,7]
[357332499,1744007492529,-2750.5,0.00041643,7]
[357332500,1744007492538,-5383.4,0.00041643,7]
[357332501,1744007492551,-1044.92,0.00041643,7]
[357332502,1744007492561,-752.29,0.00041643,7]
[357332503,1744007492570,-556.96,0.00041643,7]
[357332504,1744007492579,-16324.2,0.00041643,7]
[357332505,1744007492589,-9467.87,0.00041643,7]
[357332506,1744007492599,-519.7497203,0.00041643,7]
[357332507,1744007492608,-704.24,0.00041643,7]
[357332508,1744007492617,-5668.81,0.00041643,7]
[357332509,1744007492627,-2032.66,0.00041643,7]
[357332510,1744007492637,-7826.43,0.00041643,7]
[357332511,1744007492646,-627.1,0.00041643,7]
[357332512,1744007492656,-1951.0,0.00041643,7]
[357332513,1744007492666,-1564.82,0.00041643,7]
[357332514,1744007492678,-720.69,0.00041643,7]
[357332515,1744007492688,-603.99,0.00041643,7]
[357332516,1744007492697,-500.0,0.00041643,7]
[357332517,1744007492707,-1960.56,0.00041643,7]
[357332518,1744007492716,-1748.88,0.00041643,7]
[357332519,1744007492726,-500.0,0.00041643,7]
[357332520,1744007492735,-2029.77,0.00041643,7]
[357332521,1744007492745,-335.29743499,0.00041643,7]
[357332522,1744007492756,-1368.39,0.00041643,2]
[357332523,1744007492765,-588.58,0.00041643,7]
[357332524,1744007492774,-601.11,0.00041643,7]
[357332525,1744007492783,-484.14760025,0.00041643,7]
[357332526,1744007492794,-1802.77,0.00041643,7]
[357332527,1744007492804,-638.37,0.00041643,7]
[357332528,1744007492814,-3642.09,0.00041643,7]
[357332529,1744007492823,-1347.37,0.00041643,7]
[357332530,1744007492833,-1391.95,0.00041643,7]
[357332531,1744007492842,-500.0,0.00041643,7]
[357332532,1744007492852,-2126.62,0.00041643,7]
[357332533,1744007492861,-796.84,0.00041643,7]
[357332534,1744007492871,-617.31,0.00041643,7]
[357332535,1744007492880,-5186.58,0.00041643,7]
[357332536,1744007492890,-1111.1,0.00041643,7]
[357332537,1744007492900,-1058.19,0.00041643,7]
[357332538,1744007492909,-7684.6,0.00041643,7]
[357332539,1744007492919,-781.69,0.00041643,7]
[357332540,1744007492928,-503.58,0.00041643,7]
[357332541,1744007492938,-500.0,0.00041643,7]
[357332542,1744007492947,-526.85,0.00041643,7]
[357332543,1744007492958,-500.0,0.00041643,7]
[357332544,1744007492967,-6861.13,0.00041643,7]
[357332545,1744007492977,-500.0,0.00041643,7]
[357332546,1744007492987,-500.0,0.00041643,7]
[357332547,1744007492996,-500.0,0.00041643,7]
[357332548,1744007493005,-7716.74,0.00041643,7]
[357332549,1744007493014,-2269.56,0.00041643,7]
[357332550,1744007493023,-4907.12,0.00041643,7]
[357332551,1744007493033,-504.85,0.00041643,7]
[357332552,1744007493044,-542.23,0.00041643,7]
[357332553,1744007493054,-2640.34,0.00041643,7]
[357332554,1744007493063,-2111.69,0.00041643,7]
[357332555,1744007493073,-500.0,0.00041643,7]
[357332556,1744007493082,-2900.21,0.00041643,7]
[357332557,1744007493092,-754.1,0.00041643,7]
[357332558,1744007493102,-582.6,0.00041643,7]
[357332559,1744007493112,-726.72,0.00041643,7]
[357332560,1744007493123,-904.26,0.00041643,7]
[357332561,1744007493133,-500.0,0.00041643,7]
[357332562,1744007493142,-564.13,0.00041643,7]
[357332563,1744007493151,-853.72,0.00041643,7]
[357332564,1744007493161,-17236.37,0.00041643,7]
[357332565,1744007493171,-1442.71,0.00041643,7]
[357332566,1744007493181,-520.98,0.00041643,7]
[357332567,1744007493191,-3459.37,0.00041643,7]
[357332568,1744007493201,-500.0,0.00041643,7]
[357332569,1744007493211,-1195.35,0.00041643,7]
[357332570,1744007493221,-500.0,0.00041643,7]
[357332571,1744007493231,-739.23,0.00041643,7]
[357332572,1744007493241,-500.0,0.00041643,7]
[357332573,1744007493251,-931.74,0.00041643,7]
[357332574,1744007493261,-1037.89,0.00041643,7]
[357332575,1744007493271,-174.93819278,0.00041643,7]
[357332576,1744007493280,-500.0,0.00041643,7]
[357332577,1744007493293,-500.0,0.00041644,7]
[357332578,1744007493304,-500.0,0.00041644,7]
[357332579,1744007493314,-500.0,0.00041644,7]
[357332580,1744007493323,-650.0,0.00041712,2]
[357332581,1744007493333,-1208.75877963,0.00041728,16]
[357332582,1744007493343,-200.0,0.00041753,14]
[357332583,1744007493353,-200.0,0.0004176,14]
[357332584,1744007493364,-300.83766651,0.0004176,14]
[357332585,1744007493374,-500.127915,0.000418,55]
[357332586,1744007493383,-211.49636895,0.00041836,120]
[357332587,1744007493393,-500.0,0.000419,56]
[357332588,1744007493403,-500.0,0.00041917,7]
[357332589,1744007493413,-812.34,0.00041917,7]
[357332590,1744007493423,-500.0,0.00041917,7]
[357332591,1744007493433,-729.06,0.00041917,7]
[357332592,1744007493443,-500.0,0.00041917,7]
[357332593,1744007493453,-262.97052981,0.00041917,7]
[357332594,1744007493463,-500.0,0.00041917,7]
[357332595,1744007493473,-736.69,0.00041917,7]
[357332596,1744007493483,-500.0,0.00041917,7]
[357332597,1744007493492,-500.0,0.00041917,7]
[357332598,1744007493501,-500.0,0.00041917,7]
[357332599,1744007493511,-500.0,0.00041917,7]
[357332600,1744007493521,-500.0,0.00041917,7]
[357332601,1744007493530,-500.0,0.00041917,7]
[357332602,1744007493540,-867.45,0.00041917,7]
[357332603,1744007493552,-500.0,0.00041917,7]
[357332604,1744007493670,-500.0,0.00041917,7]
[357332605,1744007493680,-500.0,0.00041917,7]
[357332606,1744007493690,-500.0,0.00041917,7]
[357332607,1744007493700,-500.0,0.00041917,7]
[357332608,1744007493711,-533.35,0.00041917,7]
[357332609,1744007493720,-906.27,0.00041917,7]
[357332610,1744007493730,-670.8,0.00041917,7]
[357332611,1744007493740,-517.39,0.00041917,7]
[357332612,1744007493750,-500.0,0.00041917,7]
[357332613,1744007493760,-534.6,0.00041917,7]
[357332614,1744007493770,-500.0,0.00041917,7]
[357332615,1744007493780,-1086.53,0.00041917,7]
[357332616,1744007493790,-576.65,0.00041917,7]
[357332617,1744007493801,-500.0,0.00041917,7]
[357332618,1744007493812,-500.0,0.00041917,7]
[357332619,1744007493822,-500.0,0.00041917,7]
[357332620,1744007493832,-500.0,0.00041917,7]
[357332621,1744007493841,-500.0,0.00041917,7]
[357332622,1744007493851,-1107.37,0.00041917,7]
[357332623,1744007493862,-1447.2,0.00041917,7]
[357332624,1744007493872,-513.43,0.00041917,7]
[357332625,1744007493883,-500.0,0.00041917,7]
[357332626,1744007493893,-566.61,0.00041917,7]
[357332627,1744007493903,-939.19,0.00041917,7]
[357332628,1744007493913,-1423.54,0.00041917,7]
[357332629,1744007493924,-2008.01,0.00041917,7]
[357332630,1744007493934,-1800.94,0.00041917,7]
[357332631,1744007493944,-901.74,0.00041917,7]
[357332632,1744007493954,-500.0,0.00041917,7]
[357332633,1744007493965,-749.66,0.00041917,7]
[357332634,1744007493975,-500.0,0.00041917,7]
[357332635,1744007493984,-500.0,0.00041917,7]
[357332636,1744007493993,-697.53,0.00041917,7]
[357332637,1744007494002,-500.0,0.00041917,7]
[357332638,1744007494012,-934.77,0.00041917,7]
[357332639,1744007494023,-500.0,0.00041917,7]
[357332640,1744007494033,-1984.09,0.00041917,7]
[357332641,1744007494045,-946.46,0.00041917,7]
[357332642,1744007494055,-935.62,0.00041917,7]
[357332643,1744007494065,-500.0,0.00041917,7]
[357332644,1744007494075,-500.0,0.00041917,7]
[357332645,1744007494085,-515.1,0.00041917,7]
[357332646,1744007494094,-512.76,0.00041917,7]
[357332647,1744007494104,-690.44,0.00041917,7]
[357332648,1744007494115,-838.21,0.00041917,7]
[357332649,1744007494124,-847.87,0.00041917,7]
[357332650,1744007494134,-1589.02,0.00041917,7]
[357332651,1744007494144,-500.0,0.00041917,7]
[357332652,1744007494154,-626.2880273,0.00041917,7]
[357332653,1744007494164,-500.0,0.00041917,7]
[357332654,1744007494174,-500.0,0.00041917,7]
[357332655,1744007494184,-1158.58,0.00041917,7]
[357332656,1744007494194,-952.13,0.00041917,7]
[357332657,1744007494205,-573.45,0.00041917,7]
[357332658,1744007494215,-500.0,0.00041917,7]
[357332659,1744007494227,-1057.47,0.00041917,7]
[357332660,1744007494238,-500.0,0.00041917,7]
[357332661,1744007494248,-694.43,0.00041917,7]
[357332662,1744007494258,-500.0,0.00041917,7]
[357332663,1744007494268,-571.11,0.00041917,7]
[357332664,1744007494278,-500.0,0.00041917,7]
[357332665,1744007494288,-528.03,0.00041917,7]
[357332666,1744007494305,-500.0,0.00041917,7]
[357332667,1744007494314,-613.99,0.00041917,7]
[357332668,1744007494325,-1665.49,0.00041917,7]
[357332669,1744007494335,-928.88,0.00041917,7]
[357332670,1744007494344,-772.18,0.00041917,7]
[357332671,1744007494355,-500.0,0.00041917,7]
[357332672,1744007494365,-500.0,0.00041917,7]
[357332673,1744007494375,-500.0,0.00041917,7]
[357332674,1744007494386,-500.0,0.00041917,7]
[357332675,1744007494396,-1501.09,0.00041917,2]
[357332676,1744007494406,-586.05,0.00041917,7]
[357332677,1744007494416,-722.91,0.00041917,7]
[357332678,1744007494427,-1033.34,0.00041917,7]
[357332679,1744007494436,-522.77,0.00041917,7]
[357332680,1744007494446,-500.0,0.00041917,7]
[357332681,1744007494456,-571.83,0.00041917,7]
[357332682,1744007494466,-523.84,0.00041917,7]
[357332683,1744007494487,-500.0,0.00041917,7]
[357332684,1744007494505,-500.0,0.00041917,7]
[357332685,1744007494528,-500.0,0.00041917,7]
[357332686,1744007494551,-833.69,0.00041917,7]
[357332687,1744007494571,-2025.36,0.00041917,7]
[357332688,1744007494590,-419.18169641,0.00041917,7]
[357332689,1744007494610,-1592.74,0.00041917,7]
[357332690,1744007494625,-603.67,0.00041917,7]
[357332691,1744007494644,-500.0,0.00041917,7]
[357332692,1744007494664,-2054.09,0.00041917,7]
[357332693,1744007494684,-4027.87,0.00041917,7]
[357332694,1744007494700,-1703.64,0.00041917,7]
[357332695,1744007494720,-1206.14,0.00041917,7]
[357332696,1744007494736,-2750.5,0.00041917,7]
[357332697,1744007494751,-5383.4,0.00041917,7]
[357332698,1744007494768,-1044.92,0.00041917,7]
[357332699,1744007494783,-752.29,0.00041917,7]
[357332700,1744007494801,-556.96,0.00041917,7]
[357332701,1744007494816,-16324.2,0.00041917,7]
[357332702,1744007494831,-9467.87,0.00041917,7]
[357332703,1744007494846,-704.24,0.00041917,7]
[357332704,1744007494861,-5668.81,0.00041917,7]
[357332705,1744007494876,-2032.66,0.00041917,7]
[357332706,1744007494890,-7826.43,0.00041917,7]
[357332707,1744007494905,-627.1,0.00041917,7]
[357332708,1744007494920,-1951.0,0.00041917,7]
[357332709,1744007494935,-1564.82,0.00041917,7]
[357332710,1744007494950,-720.69,0.00041917,7]
[357332711,1744007494965,-603.99,0.00041917,7]
[357332712,1744007494980,-500.0,0.00041917,7]
[357332713,1744007494994,-1960.56,0.00041917,7]
[357332714,1744007495008,-1748.88,0.00041917,7]
[357332715,1744007495023,-500.0,0.00041917,7]
[357332716,1744007495038,-2029.77,0.00041917,7]
[357332717,1744007495062,-1368.39,0.00041917,2]
[357332718,1744007495078,-588.58,0.00041917,7]
[357332719,1744007495094,-601.11,0.00041917,7]
[357332720,1744007495109,-1802.77,0.00041917,7]
[357332721,1744007495124,-638.37,0.00041917,7]
[357332722,1744007495140,-3642.09,0.00041917,7]
[357332723,1744007495155,-1347.37,0.00041917,7]
[357332724,1744007495170,-1391.95,0.00041917,7]
[357332725,1744007495185,-500.0,0.00041917,7]
[357332726,1744007495201,-2126.62,0.00041917,7]
[357332727,1744007495216,-796.84,0.00041917,7]
[357332728,1744007495232,-617.31,0.00041917,7]
[357332729,1744007495248,-5186.58,0.00041917,7]
[357332730,1744007495264,-1111.1,0.00041917,7]
[357332731,1744007495279,-1058.19,0.00041917,7]
[357332732,1744007495299,-7684.6,0.00041917,7]
[357332733,1744007495314,-781.69,0.00041917,7]
[357332734,1744007495329,-503.58,0.00041917,7]
[357332735,1744007495344,-500.0,0.00041917,7]
[357332736,1744007495359,-526.85,0.00041917,7]
[357332737,1744007495375,-500.0,0.00041917,7]
[357332738,1744007495389,-6861.13,0.00041917,7]
[357332739,1744007495405,-500.0,0.00041917,7]
[357332740,1744007495419,-500.0,0.00041917,7]
[357332741,1744007495434,-646.27445399,0.00041917,7]
[357332742,1744007495449,-7716.74,0.00041917,7]
[357332743,1744007495463,-2269.56,0.00041917,7]
[357332744,1744007495477,-4907.12,0.00041917,7]
[357332745,1744007495491,-504.85,0.00041917,7]
[357332746,1744007495506,-542.23,0.00041917,7]
[357332747,1744007495521,-2640.34,0.00041917,7]
[357332748,1744007495535,-2111.69,0.00041917,7]
[357332749,1744007495554,-500.0,0.00041917,7]
[357332750,1744007495568,-2900.21,0.00041917,7]
[357332751,1744007495583,-754.1,0.00041917,7]
[357332752,1744007495599,-582.6,0.00041917,7]
[357332753,1744007495614,-726.72,0.00041917,7]
[357332754,1744007495630,-904.26,0.00041917,7]
[357332755,1744007495645,-500.0,0.00041917,7]
[357332756,1744007495663,-564.13,0.00041917,7]
[357332757,1744007495679,-853.72,0.00041917,7]
[357332758,1744007495694,-17236.37,0.00041917,7]
[357332759,1744007495709,-1442.71,0.00041917,7]
[357332760,1744007495724,-520.98,0.00041917,7]
[357332761,1744007495739,-3459.37,0.00041917,7]
[357332762,1744007495754,-500.0,0.00041917,7]
[357332763,1744007495919,-1195.35,0.00041917,7]
[357332764,1744007495932,-500.0,0.00041917,7]
[357332765,1744007495942,-739.23,0.00041917,7]
[357332766,1744007495951,-500.0,0.00041917,7]
[357332767,1744007495961,-931.74,0.00041917,7]
[357332768,1744007495971,-1037.89,0.00041917,7]
[357332769,1744007495980,-500.0,0.00041917,7]
[357332770,1744007495990,-670.67,0.00042,120]
[357332771,1744007495999,-611.0,0.00042,30]
[357332772,1744007496009,-5054.24000008,0.00042,120]
[357332773,1744007496018,-200.0,0.00042,120]
[357332774,1744007496028,-8000.0,0.00042,30]
[357332775,1744007496037,-1000.0,0.00042,120]
[357332776,1744007496051,-419.36665037,0.00042,10]
[357332777,1744007496060,-49999.0,0.00042,30]
[357332778,1744007496070,-3080.0,0.00042,120]
[357332779,1744007496080,-500.0,0.00042,57]
[357332780,1744007496090,-211.49636895,0.00042027,120]
[357332781,1744007496100,-500.0,0.00042055,7]
[357332782,1744007496110,-500.0,0.00042055,7]
[357332783,1744007496119,-500.0,0.00042055,7]
[357332784,1744007496129,-500.0,0.000421,58]
[357332785,1744007496139,-500.0,0.00042105,30]
[357332786,1744007496148,-500.0,0.00042191,7]
[357332787,1744007496157,-812.34,0.00042191,7]
[357332788,1744007496166,-500.0,0.00042191,7]
[357332789,1744007496175,-729.06,0.00042191,7]
[357332790,1744007496185,-500.0,0.00042191,7]
[357332791,1744007496195,-500.0,0.00042191,7]
[357332792,1744007496205,-736.69,0.00042191,7]
[357332793,1744007496214,-500.0,0.00042191,7]